bitfinex/quotes_ETHUSD_20241003
["timestamp","ask_amount","ask_price","bid_price","bid_amount"]
[1727931372954,3.33403,2399.5,2399.2,0.8275]
[1727931373875,3.33417,2399.4,2399.2,0.8275]
[1727931374242,6.66843,2399.4,2399.2,0.8275]
[1727931374445,6.66843,2399.4,2398.8,0.8085]
[1727931374756,3.33439,2399.3,2398.8,1.35759968]
[1727931375127,3.33444,2399.2,2398.8,0.8085]
[1727931375467,6.66899,2399.2,2398.8,0.8085]
[1727931375628,3.33444,2399.2,2398.8,0.8085]
[1727931378533,3.33444,2399.2,2398.9,1.22679862]
[1727931380775,6.66898,2399.2,2398.8,0.8085]
[1727931380976,3.33444,2399.2,2398.9,1.22679862]
[1727931381304,3.33458,2399.1,2398.8,0.8085]
[1727931381853,3.33444,2399.2,2398.8,0.8085]
[1727931382054,3.33478,2399.0,2398.8,0.8085]
[1727931383498,3.33478,2399.0,2398.7,0.1206382]
[1727931383918,6.66962,2399.0,2398.7,0.1206382]
[1727931384604,3.33478,2399.0,2398.7,0.1206382]
[1727931384809,6.66963,2399.0,2398.7,0.1206382]
[1727931385012,3.33478,2399.0,2398.7,0.1206382]
[1727931385173,6.66958,2399.0,2398.7,0.1206382]
[1727931385369,3.33478,2399.0,2398.7,0.1206382]
[1727931385598,3.335,2398.8,2398.7,0.1206382]
[1727931388092,6.66965,2399.0,2398.7,0.1206382]
[1727931388896,3.64772,2399.1,2398.7,0.1206382]
[1727931389096,3.0,2399.0,2398.7,0.1206382]
[1727931390971,3.33481,2399.0,2398.7,0.1206382]
[1727931391423,3.33487,2398.9,2398.7,0.1206382]
[1727931392037,6.66961,2399.0,2398.7,0.1206382]
[1727931392441,3.3348,2399.0,2398.7,0.1206382]
[1727931392620,3.33455,2399.2,2398.8,1.22679862]
[1727931392807,3.33455,2399.2,2398.9,0.7874]
[1727931395523,6.66908,2399.2,2398.9,0.7874]
[1727931395727,6.66905,2399.2,2398.9,0.7874]
[1727931395939,3.33452,2399.2,2398.9,0.7874]
[1727931396314,6.66904,2399.2,2398.9,0.7874]
[1727931396841,3.33395,2399.6,2398.9,0.7874]
[1727931396842,3.33397,2399.6,2399.1,0.7688]
[1727931397046,3.33397,2399.6,2399.4,1.22679862]
[1727931397350,3.33347,2399.9,2399.5,0.7688]
[1727931397553,3.33361,2399.8,2399.5,0.7688]
[1727931398600,3.33347,2399.9,2399.5,0.7688]
[1727931398840,3.33362,2399.8,2399.5,0.7688]
[1727931399597,6.66735,2399.8,2399.5,0.7688]
[1727931399747,6.6673,2399.8,2399.5,0.7688]
[1727931399950,3.33362,2399.8,2399.5,0.7688]
[1727931403482,6.66735,2399.8,2399.5,0.7688]
[1727931403865,3.33362,2399.8,2399.5,0.7688]
[1727931404962,3.33376,2399.7,2399.5,0.7688]
[1727931405395,3.33362,2399.8,2399.5,0.7688]
[1727931405595,3.33342,2400.0,2399.5,0.7688]
[1727931406474,6.66688,2400.0,2399.5,0.7688]
[1727931407212,3.33348,2399.9,2399.5,0.7688]
[1727931408466,0.3131,2400.1,2399.5,0.7688]
[1727931408467,3.33368,2399.8,2399.5,0.7688]
[1727931410909,3.0,2400.2,2399.7,5.99446975]
[1727931410910,9.66627,2400.2,2399.7,5.99446975]
[1727931411111,6.33313,2400.2,2399.7,2.66074975]
[1727931411476,3.33329,2400.1,2399.7,2.66074975]
[1727931412486,3.33333,2400.0,2399.7,2.66074975]
[1727931412670,6.33313,2400.2,2399.7,2.66074975]
[1727931412875,3.0,2400.3,2399.8,0.7615]
[1727931413182,3.0,2400.3,2399.7,3.67251572]
[1727931413183,3.0,2400.3,2400.0,0.7615]
[1727931413805,6.33293,2400.3,2400.0,0.7615]
[1727931414820,3.33305,2400.2,2400.0,0.7615]
[1727931415284,6.66623,2400.2,2400.0,0.7615]
[1727931415477,6.66618,2400.2,2400.0,0.7615]
[1727931416103,3.33305,2400.2,2400.0,0.7615]
[1727931417808,3.33326,2400.1,2399.9,0.7663]
[1727931418992,3.33326,2400.1,2399.9,1.99403443]
[1727931420688,3.33301,2400.3,2399.9,1.99403443]
[1727931420889,3.33305,2400.2,2399.9,1.99403443]
[1727931427094,3.33301,2400.3,2399.9,1.99403443]
[1727931427498,3.33301,2400.3,2400.1,1.22773443]
[1727931429065,3.33278,2400.4,2400.1,1.22773443]
[1727931429277,3.0,2400.3,2400.2,0.7852]
[1727931430441,3.33278,2400.4,2400.2,0.7852]
[1727931431639,3.33291,2400.3,2400.2,0.7852]
[1727931435839,3.33274,2400.5,2400.2,0.7852]
[1727931436044,3.33206,2401.0,2400.5,0.8234]
[1727931436347,3.33185,2401.1,2400.8,1.22773443]
[1727931436591,3.33185,2401.1,2400.8,2.05493443]
[1727931436912,3.33176,2401.2,2400.8,2.05493443]
[1727931437117,3.33181,2401.1,2400.8,2.05493443]
[1727931438086,6.66369,2401.1,2400.8,2.05493443]
[1727931438870,3.33194,2401.0,2400.8,2.05493443]
[1727931439218,3.33181,2401.1,2400.8,2.05493443]
[1727931439383,3.33181,2401.1,2400.5,0.7759]
[1727931439712,3.3323,2400.8,2400.6,1.22773443]
[1727931440986,3.0,2401.1,2400.7,0.8078]
[1727931441297,6.33187,2401.1,2400.7,0.8078]
[1727931441776,6.33187,2401.1,2400.8,1.22773443]
[1727931442674,3.0,2401.1,2400.8,1.22773443]
[1727931443500,3.0,2401.1,2400.7,4.14012]
[1727931444753,6.33182,2401.1,2400.7,0.8078]
[1727931445257,3.33197,2401.0,2400.7,0.8078]
[1727931446559,6.66398,2401.0,2400.7,0.8078]
[1727931446862,3.33197,2401.0,2400.7,0.8078]
[1727931449330,3.33197,2401.0,2400.5,4.10093]
[1727931451274,3.33209,2400.9,2400.5,0.7683]
[1727931451485,3.33197,2401.0,2400.5,0.7683]
[1727931451632,3.0,2401.1,2400.6,3.33249]
[1727931451834,3.0,2401.1,2400.7,0.7817]
[1727931452075,6.33184,2401.1,2400.7,0.7817]
[1727931453386,3.33196,2401.0,2400.7,0.7817]
[1727931461611,3.64506,2401.0,2400.5,0.7968]
[1727931461804,3.33231,2400.8,2400.5,0.7968]
[1727931464723,3.3326,2400.6,2400.3,0.7549]
[1727931464886,3.33271,2400.5,2400.3,0.7549]
[1727931466180,3.3326,2400.6,2400.3,0.7549]
[1727931466377,3.33263,2400.5,2400.2,1.22717292]
[1727931467886,3.3326,2400.6,2400.2,1.22717292]
[1727931468092,3.33278,2400.4,2400.2,1.22717292]
[1727931468504,3.3326,2400.6,2400.2,1.22717292]
[1727931471416,3.33258,2400.6,2400.2,1.22717292]
[1727931471779,6.66517,2400.6,2400.2,1.22717292]
[1727931471981,3.33265,2400.5,2400.2,1.22717292]
[1727931475515,3.33265,2400.5,2400.3,0.7639]
[1727931475719,3.33257,2400.6,2400.3,0.7639]
[1727931475903,3.0,2400.9,2400.4,1.22717292]
[1727931476113,3.0,2400.9,2400.5,0.7639]
[1727931476419,3.33224,2400.8,2400.5,0.7639]
[1727931480085,3.33202,2401.0,2400.6,1.22717292]
[1727931480315,3.33202,2401.0,2400.7,0.8143]
[1727931480484,3.33187,2401.1,2400.7,1.35171029]
[1727931481028,3.33187,2401.1,2400.8,1.22717292]
[1727931481327,3.33187,2401.1,2400.9,0.8143]
[1727931481697,7.39,2401.3,2401.0,1.22717292]
[1727931481905,7.39,2401.3,2401.1,0.8143]
[1727931482229,3.33106,2401.7,2401.3,0.8143]
[1727931483046,3.33126,2401.5,2401.3,0.8143]
[1727931485128,3.33138,2401.5,2401.3,0.8143]
[1727931485329,3.33139,2401.4,2401.3,0.8143]
[1727931486003,3.33138,2401.5,2401.3,0.8143]
[1727931486207,6.66274,2401.5,2401.3,0.8143]
[1727931486629,3.33136,2401.5,2401.3,0.8143]
[1727931486838,6.66269,2401.5,2401.3,0.8143]
[1727931487045,6.33113,2401.6,2401.3,0.8143]
[1727931488941,3.33131,2401.5,2401.3,0.8143]
[1727931489478,3.33139,2401.4,2401.3,0.8143]
[1727931489979,6.66266,2401.5,2401.3,0.8143]
[1727931490281,3.33131,2401.5,2401.3,0.8143]
[1727931491049,3.0,2401.6,2401.3,0.8143]
[1727931491455,6.33112,2401.6,2401.3,0.8143]
[1727931492367,3.0,2401.6,2401.3,0.8143]
[1727931493090,3.33105,2401.7,2401.3,0.8143]
[1727931494041,6.66215,2401.7,2401.3,0.8143]
[1727931494285,6.66213,2401.7,2401.3,0.8143]
[1727931494675,3.33111,2401.6,2401.3,0.8143]
[1727931495350,3.33105,2401.7,2401.3,0.8143]
[1727931495846,6.66213,2401.7,2401.3,0.8143]
[1727931496042,3.33105,2401.7,2401.3,0.8143]
[1727931496290,6.66214,2401.7,2401.3,0.8143]
[1727931496492,3.33105,2401.7,2401.3,0.8143]
[1727931496807,6.66212,2401.7,2401.3,0.8143]
[1727931498213,3.33111,2401.6,2401.3,0.8143]
[1727931498720,3.33105,2401.7,2401.3,0.8143]
[1727931498917,6.66212,2401.7,2401.3,0.8143]
[1727931499297,3.33115,2401.6,2401.3,0.8143]
[1727931499626,3.33105,2401.7,2401.3,0.8143]
[1727931499832,6.66214,2401.7,2401.3,0.81348508]
[1727931500289,3.33123,2401.6,2401.3,0.81348508]
[1727931501229,3.33125,2401.5,2401.3,0.81348508]
[1727931501790,3.33139,2401.4,2401.3,0.81348508]
[1727931502320,3.33125,2401.5,2401.3,0.81348508]
[1727931502485,6.66263,2401.5,2401.3,0.81348508]
[1727931502890,3.33125,2401.5,2401.3,0.81348508]
[1727931503629,3.33107,2401.7,2401.3,2.040658]
[1727931503833,3.33113,2401.6,2401.3,2.040658]
[1727931505014,3.33107,2401.7,2401.3,2.040658]
[1727931505724,6.66214,2401.7,2401.3,2.040658]
[1727931506858,3.33126,2401.5,2401.3,2.040658]
[1727931507151,6.66262,2401.5,2401.3,2.040658]
[1727931507355,3.33126,2401.5,2401.3,2.040658]
[1727931511359,3.33112,2401.6,2401.3,2.040658]
[1727931514955,3.33112,2401.6,2401.3,0.81348508]
[1727931519422,3.30349323,2401.6,2401.3,0.81348508]
[1727931529917,3.33098,2401.7,2401.3,0.81348508]
[1727931534016,3.33098,2401.7,2401.3,2.040658]
[1727931538933,3.3312,2401.6,2401.3,0.81348508]
[1727931539163,3.33133,2401.5,2401.3,0.81348508]
[1727931539527,3.33125,2401.5,2401.3,0.81348508]
[1727931541459,3.33125,2401.5,2401.1,2.89061718]
[1727931541876,3.33125,2401.5,2401.1,2.02067292]
[1727931542465,3.33125,2401.5,2401.1,2.89061718]
[1727931542768,3.33125,2401.5,2401.1,2.02067292]
[1727931544630,3.6452,2401.6,2401.1,5.35246292]
[1727931544831,3.3312,2401.6,2401.3,1.22717292]
[1727931545348,6.33098,2401.7,2401.3,1.22717292]
[1727931545757,6.33098,2401.7,2401.4,0.8118]
[1727931546624,9.66202,2401.7,2401.4,0.8118]
[1727931551066,3.33119,2401.6,2401.4,0.8118]
[1727931556086,6.33098,2401.7,2401.4,0.8118]
[1727931556226,9.66207,2401.7,2401.4,0.8118]
[1727931559778,8.54955793,2402.4,2401.5,0.8124]
[1727931559983,10.71969,2402.7,2402.3,1.22717292]
[1727931560270,3.32969,2402.7,2402.6,1.22717292]
[1727931560770,3.32969,2402.7,2402.4,1.22717292]
[1727931560771,6.65937,2402.7,2402.4,1.22717292]
[1727931561141,3.32973,2402.6,2402.4,1.22717292]
[1727931561778,3.32939,2402.9,2402.5,0.7974]
[1727931561934,14.04826,2403.1,2402.8,1.22717292]
[1727931562135,6.65826,2403.1,2402.8,1.22717292]
[1727931562442,3.32917,2403.0,2402.8,1.22717292]
[1727931562646,3.32931,2402.9,2402.8,1.22717292]
[1727931564782,6.32931,2402.9,2402.8,1.22717292]
[1727931567290,3.32931,2402.9,2402.8,1.22717292]
[1727931570292,3.32953,2402.8,2402.6,1.22717292]
[1727931571286,3.32958,2402.7,2402.6,1.22717292]
[1727931571492,6.65874,2402.9,2402.6,1.22717292]
[1727931571845,3.32948,2402.8,2402.6,1.22717292]
[1727931573592,3.32948,2402.8,2402.3,0.7534]
[1727931573593,3.0,2402.6,2402.3,0.7534]
[1727931573901,3.64355,2402.8,2402.3,0.7534]
[1727931573902,3.33,2402.4,2402.3,0.7534]
[1727931574254,3.33,2402.4,2402.0,0.7504]
[1727931574453,3.33028,2402.2,2402.0,0.7504]
[1727931575055,3.33,2402.4,2402.0,0.7504]
[1727931575056,6.66012,2402.4,2402.0,0.7504]
[1727931575255,3.33018,2402.3,2402.0,0.7504]
[1727931575774,3.33,2402.4,2402.0,1.97757292]
[1727931575978,3.33,2402.4,2402.0,2.25421964]
[1727931577193,6.32965,2402.7,2402.2,1.22717292]
[1727931577357,3.3298,2402.6,2402.4,1.22717292]
[1727931577693,3.3298,2402.6,2402.3,0.806]
[1727931577895,3.3298,2402.6,2402.3,1.219634]
[1727931578394,9.65933,2402.7,2402.3,1.219634]
[1727931580306,3.33044,2402.1,2401.8,0.8013]
[1727931580512,3.0,2401.9,2401.6,0.8013]
[1727931580721,6.33072,2401.9,2401.6,0.8013]
[1727931580918,3.0,2401.9,2401.6,0.8013]
[1727931581815,6.33074,2401.9,2401.6,0.8013]
[1727931582695,3.0,2401.9,2401.6,0.8013]
[1727931582908,3.33058,2402.0,2401.6,1.214554]
[1727931583085,3.33042,2402.1,2401.6,1.214554]
[1727931583280,3.33032,2402.2,2401.7,0.8012]
[1727931583591,3.33032,2402.2,2401.7,4.6668594]
[1727931587668,3.33032,2402.2,2401.8,0.7833]
[1727931589530,6.66067,2402.2,2401.8,0.7833]
[1727931589726,3.33014,2402.3,2402.0,0.7531]
[1727931589933,3.33009,2402.4,2402.0,0.7531]
[1727931590128,3.33009,2402.4,2402.1,0.34093309]
[1727931590129,3.33016,2402.3,2402.1,0.34093309]
[1727931590830,3.3298,2402.6,2402.2,0.7931]
[1727931591030,3.32973,2402.6,2402.4,2.6562309]
[1727931592358,3.32954,2402.8,2402.4,2.6562309]
[1727931592571,3.32954,2402.8,2402.5,0.8085]
[1727931593163,3.32958,2402.7,2402.5,0.8085]
[1727931593666,3.32924,2403.0,2402.6,2.6562309]
[1727931593867,3.32933,2402.9,2402.7,1.16497309]
[1727931594653,3.32932,2402.9,2402.7,1.16497309]
[1727931595291,6.6585,2403.0,2402.7,1.16497309]
[1727931595496,6.6585,2403.0,2402.8,0.387904]
[1727931595667,3.32924,2403.0,2402.8,0.387904]
[1727931595989,6.65849,2403.0,2402.8,3.0441349]
[1727931596155,6.65849,2403.0,2402.7,0.8185]
[1727931596351,3.32931,2402.9,2402.7,0.8185]
[1727931598664,3.32944,2402.8,2402.7,0.8185]
[1727931599355,3.32944,2402.8,2402.7,1.16597309]
[1727931600288,3.32944,2402.8,2402.7,1.14052309]
[1727931600507,6.6585,2403.0,2402.7,1.14052309]
[1727931600688,3.32924,2403.0,2402.7,1.14052309]
[1727931600893,3.0,2403.1,2402.8,3.0359063]
[1727931601090,3.32898,2403.2,2403.0,2.6562309]
[1727931601405,3.32871,2403.4,2403.0,2.6562309]
[1727931601978,3.32871,2403.4,2401.9,2.6562309]
[1727931601979,0.3394,2403.0,2401.9,2.6562309]
[1727931602199,3.3301,2402.4,2401.9,2.6562309]
[1727931602441,3.3301,2402.4,2402.0,0.68569352]
[1727931602796,3.33009,2402.4,2402.0,0.68569352]
[1727931603120,3.32986,2402.5,2402.0,4.01623352]
[1727931603298,3.32986,2402.5,2402.1,0.7584]
[1727931603494,3.33004,2402.4,2402.1,0.7584]
[1727931604041,3.32986,2402.5,2402.1,0.7584]
[1727931604238,6.65983,2402.5,2402.1,0.7584]
[1727931604736,3.32986,2402.5,2402.1,0.7584]
[1727931604906,6.65981,2402.5,2402.1,0.7584]
[1727931605871,3.32986,2402.5,2402.1,0.7584]
[1727931610423,3.33017,2402.3,2401.9,0.8026]
[1727931612248,3.33003,2402.4,2401.9,4.13329]
[1727931614652,3.32986,2402.5,2402.0,0.8175]
[1727931614847,3.32986,2402.5,2402.0,4.14805]
[1727931616102,3.32986,2402.5,2402.0,0.8175]
[1727931616400,3.32986,2402.5,2402.0,4.14803]
[1727931617548,3.32986,2402.5,2402.0,0.8175]
[1727931617549,3.33009,2402.4,2402.0,0.8175]
[1727931618663,3.66926,2402.5,2402.0,0.8175]
[1727931618826,3.32986,2402.5,2402.0,4.14803]
[1727931619329,0.3394,2402.4,2402.0,3.33053]
[1727931619661,3.32986,2402.5,2402.0,3.33053]
[1727931619662,3.32986,2402.5,2402.1,0.8055]
[1727931620454,6.6598,2402.5,2402.1,0.8055]
[1727931622873,3.33002,2402.4,2402.1,0.8055]
[1727931623426,3.32986,2402.5,2402.1,0.8055]
[1727931624547,6.65984,2402.5,2402.1,0.8055]
[1727931624865,3.32986,2402.5,2402.1,0.8055]
[1727931625042,6.6598,2402.5,2402.1,0.8055]
[1727931625241,3.32986,2402.5,2402.1,0.8055]
[1727931625653,3.32967,2402.7,2402.2,0.8046]
[1727931625884,10.7191,2403.1,2402.5,0.8046]
[1727931625885,10.71914,2403.1,2402.5,0.8046]
[1727931626188,6.65772,2403.3,2402.8,2.6562309]
[1727931626478,3.3289,2403.2,2402.8,2.6562309]
[1727931627127,3.3289,2403.2,2402.7,4.13409]
[1727931627378,3.32904,2403.1,2402.7,0.8046]
[1727931627874,3.32904,2403.1,2402.7,4.13417]
[1727931628975,3.32904,2403.1,2402.7,0.8046]
[1727931633749,0.3394,2403.0,2402.3,0.8192]
[1727931634075,3.32987,2402.5,2402.3,0.8192]
[1727931634683,3.33,2402.4,2401.9,3.33062]
[1727931634880,3.32987,2402.5,2401.9,3.33062]
[1727931635046,3.32987,2402.5,2402.0,3.33054]
[1727931635681,3.32987,2402.5,2402.1,0.8205]
[1727931638151,3.32987,2402.5,2402.1,4.1509]
[1727931639545,6.65984,2402.5,2402.1,0.8205]
[1727931639747,6.6598,2402.5,2402.1,0.8205]
[1727931639946,3.32987,2402.5,2402.1,4.15089]
[1727931641265,3.32987,2402.5,2402.1,0.8205]
[1727931641856,3.32987,2402.5,2402.1,4.1509]
[1727931643893,3.0,2402.6,2402.1,4.1509]
[1727931644394,6.32975,2402.6,2402.1,4.1509]
[1727931646496,7.39,2403.1,2402.1,4.1509]
[1727931646497,3.0,2402.8,2402.2,5.9864909]
[1727931646684,6.32948,2402.8,2402.3,4.10147]
[1727931646887,3.0,2402.8,2402.4,3.33]
[1727931647087,3.0,2402.8,2402.5,0.7937]
[1727931647712,10.71907,2403.1,2402.6,0.7937]
[1727931648000,3.32907,2403.1,2402.6,0.7937]
[1727931649213,3.32907,2403.1,2402.6,4.12332]
[1727931651318,3.32907,2403.1,2402.6,5.17549109]
[1727931654488,3.3394,2403.0,2402.4,2.6562309]
[1727931654684,3.3394,2403.0,2402.3,0.769]
[1727931654685,3.32985,2402.6,2402.3,0.769]
[1727931654889,3.32998,2402.5,2402.3,0.769]
[1727931655097,6.65994,2402.5,2402.3,0.769]
[1727931655488,3.32996,2402.5,2402.3,0.769]
[1727931657489,6.65937,2402.7,2402.3,0.769]
[1727931657716,3.32979,2402.6,2402.3,0.769]
[1727931660332,3.32988,2402.5,2402.3,0.769]
[1727931661007,3.32973,2402.6,2402.3,0.769]
[1727931664032,3.32946,2402.8,2402.3,0.769]
[1727931664234,3.32974,2402.6,2402.3,0.769]
[1727931665628,3.0,2402.7,2402.3,0.769]
[1727931665629,6.3296,2402.7,2402.3,0.769]
[1727931666742,3.32974,2402.6,2402.3,0.769]
[1727931668055,6.65953,2402.6,2402.3,0.769]
[1727931668341,3.32974,2402.6,2402.3,0.769]
[1727931668641,6.65954,2402.6,2402.3,0.769]
[1727931668948,3.32974,2402.6,2402.3,0.769]
[1727931679020,3.32991,2402.5,2402.3,0.769]
[1727931679446,3.0,2402.7,2402.3,0.769]
[1727931679659,3.32973,2402.6,2402.3,0.769]
[1727931682922,3.0,2402.7,2402.3,0.769]
[1727931683126,3.32977,2402.6,2402.3,0.769]
[1727931690863,3.32977,2402.6,2402.3,1.63894426]
[1727931691736,3.32977,2402.6,2402.3,0.769]
[1727931692474,3.33,2402.4,2402.3,0.769]
[1727931693749,3.33014,2402.3,2402.0,1.62964426]
[1727931694085,3.33014,2402.3,2402.0,0.7597]
[1727931694450,3.3303,2402.2,2402.0,0.7597]
[1727931694884,3.33043,2402.1,2401.7,1.62964426]
[1727931695390,6.66094,2402.1,2401.7,1.62964426]
[1727931695589,3.33043,2402.1,2401.7,1.62964426]
[1727931696105,3.33043,2402.1,2401.8,0.86994426]
[1727931696106,3.33055,2402.0,2401.8,0.86994426]
[1727931696466,3.33043,2402.1,2401.9,0.86994426]
[1727931696872,3.33043,2402.1,2401.7,4.09065]
[1727931697356,3.33043,2402.1,2401.7,0.7597]
[1727931699495,3.33029,2402.2,2401.7,4.09063]
[1727931699668,3.33029,2402.2,2401.7,5.04232756]
[1727931701075,3.33029,2402.2,2401.9,0.86994426]
[1727931701954,3.33029,2402.2,2401.7,5.04232756]
[1727931703688,3.32993,2402.5,2402.2,0.8278]
[1727931703982,13.71969,2402.7,2402.3,1.22538134]
[1727931703983,3.32969,2402.7,2402.3,1.22538134]
[1727931704295,3.32969,2402.7,2402.4,0.8278]
[1727931704906,6.65935,2402.7,2402.4,0.8278]
[1727931705194,6.65933,2402.7,2402.4,0.8278]
[1727931705702,3.32966,2402.7,2402.4,0.8278]
[1727931711776,3.32983,2402.6,2402.4,0.8278]
[1727931712025,3.32986,2402.5,2402.1,0.7666]
[1727931712182,3.32986,2402.5,2402.1,1.63654426]
[1727931712382,3.33001,2402.4,2402.1,1.63654426]
[1727931713113,3.33001,2402.4,2402.1,0.7666]
[1727931713319,3.32986,2402.5,2402.1,0.7666]
[1727931718911,3.32986,2402.5,2402.1,4.09701]
[1727931719110,3.32986,2402.5,2402.1,0.7666]
[1727931723524,3.33002,2402.4,2402.1,0.7666]
[1727931724050,3.32986,2402.5,2402.1,0.7666]
[1727931724858,3.32986,2402.5,2402.1,4.09699]
[1727931725856,3.32986,2402.5,2402.2,1.22538134]
[1727931726015,3.32986,2402.5,2402.3,0.8009]
[1727931726514,3.32966,2402.7,2402.3,0.8009]
[1727931727140,3.32966,2402.7,2402.3,4.13103]
[1727931727451,6.32941,2402.9,2402.7,0.7909]
[1727931733024,3.32941,2402.9,2402.7,0.7909]
[1727931734260,3.32977,2402.6,2402.3,0.8155]
[1727931734463,3.32993,2402.5,2402.3,0.8155]
[1727931734964,3.33,2402.4,2402.1,0.8155]
[1727931735662,3.32985,2402.6,2402.1,0.8155]
[1727931735986,3.32992,2402.5,2402.1,0.8155]
[1727931737325,3.32992,2402.5,2402.1,5.37127134]
[1727931739925,3.3296,2402.7,2402.1,5.37127134]
[1727931740124,6.65932,2402.7,2402.1,5.37127134]
[1727931741766,3.32972,2402.6,2402.1,5.37127134]
[1727931744243,3.3296,2402.7,2402.1,2.13933235]
[1727931744570,3.3296,2402.7,2402.2,4.15588]
[1727931744788,0.3394,2402.8,2402.3,3.33013]
[1727931744982,7.39,2403.0,2402.2,4.15588]
[1727931744983,7.39,2403.0,2402.7,2.05108134]
[1727931745162,3.3287,2403.4,2403.0,0.8257]
[1727931745367,3.66797,2403.5,2403.3,1.22538134]
[1727931745579,3.66797,2403.5,2403.1,1.22538134]
[1727931745932,6.99654,2403.5,2403.1,1.22538134]
[1727931746131,3.32865,2403.4,2403.1,1.22538134]
[1727931746375,3.66797,2403.5,2403.1,1.22538134]
[1727931746757,3.32857,2403.5,2403.1,1.22538134]
[1727931747283,6.65716,2403.5,2403.1,1.22538134]
[1727931747428,3.32857,2403.5,2403.1,1.22538134]
[1727931749467,6.65716,2403.5,2403.1,1.22538134]
[1727931749675,6.65712,2403.5,2403.1,1.22538134]
[1727931749909,3.32855,2403.5,2403.1,1.22538134]
[1727931750375,6.65709,2403.5,2403.1,1.22538134]
[1727931750728,3.32854,2403.5,2403.1,1.22538134]
[1727931750936,3.32863,2403.4,2403.1,1.22538134]
[1727931751179,3.32854,2403.5,2403.1,1.22538134]
[1727931751333,6.65714,2403.5,2403.1,1.22538134]
[1727931751968,3.32887,2403.3,2403.0,0.8257]
[1727931752271,3.32883,2403.3,2403.0,0.8257]
[1727931752506,6.65766,2403.3,2403.0,0.8257]
[1727931753179,3.32891,2403.2,2402.8,0.7577]
[1727931753332,3.32891,2403.2,2402.8,2.39180034]
[1727931753734,3.66823,2403.3,2402.8,2.39180034]
[1727931753927,3.32883,2403.3,2402.8,5.72123034]
[1727931754683,6.6577,2403.3,2402.8,2.39180034]
[1727931754986,3.32883,2403.3,2402.9,0.57212803]
[1727931757272,3.32862,2403.4,2403.1,0.7727]
[1727931757485,3.32862,2403.4,2403.1,1.36264394]
[1727931757703,3.32862,2403.4,2403.1,0.7727]
[1727931758483,3.32877,2403.3,2403.1,0.7727]
[1727931759617,6.65717,2403.5,2403.1,0.7727]
[1727931760802,3.32864,2403.4,2403.1,0.7727]
[1727931761624,3.32857,2403.5,2403.1,0.7727]
[1727931762099,6.32823,2403.7,2403.3,0.8235]
[1727931762613,3.3284,2403.6,2403.3,0.8235]
[1727931763513,3.668,2403.5,2403.0,4.09806]
[1727931763718,3.3286,2403.5,2403.1,1.22538134]
[1727931764714,3.3286,2403.5,2403.3,1.22538134]
[1727931765212,3.3286,2403.5,2403.1,5.33041614]
[1727931767720,3.3286,2403.5,2403.3,1.22538134]
[1727931767924,6.3283,2403.7,2403.4,0.7909]
[1727931768225,9.65663,2403.7,2403.4,0.7909]
[1727931770505,3.32805,2403.9,2403.5,1.22538134]
[1727931770710,3.32821,2403.7,2403.5,1.75988047]
[1727931770922,3.32821,2403.7,2403.5,1.22538134]
[1727931774803,3.32821,2403.7,2403.4,0.7909]
[1727931775125,3.32834,2403.6,2403.4,0.7909]
[1727931779903,0.3394,2403.7,2403.4,0.7909]
[1727931780495,3.66766,2403.7,2403.4,0.7909]
[1727931781338,3.32826,2403.7,2403.4,0.7909]
[1727931781904,3.32806,2403.8,2403.5,1.22538134]
[1727931782643,3.0,2404.1,2403.8,0.7889]
[1727931783133,6.32764,2404.1,2403.8,0.7889]
[1727931783519,3.0,2404.1,2403.9,1.22538134]
[1727931784130,3.32759,2404.2,2403.9,1.22538134]
[1727931784431,3.32759,2404.2,2404.1,1.22538134]
[1727931784733,3.32759,2404.2,2404.1,1.98098134]
[1727931784734,6.32759,2404.2,2404.1,1.98098134]
[1727931786718,3.32685,2404.7,2404.1,5.30854134]
[1727931787034,3.32685,2404.7,2404.5,1.22538134]
[1727931788035,3.32695,2404.6,2404.3,1.22538134]
[1727931788397,3.32718,2404.5,2404.2,0.7826]
[1727931791236,3.32725,2404.4,2403.9,0.7721]
[1727931791441,3.32725,2404.4,2403.9,1.99748134]
[1727931791598,3.32725,2404.4,2403.9,0.7721]
[1727931791792,3.32725,2404.4,2403.9,4.09997]
[1727931791996,3.32725,2404.4,2403.9,5.10784526]
[1727931792545,3.32725,2404.4,2403.9,5.10788526]
[1727931792856,6.65456,2404.4,2403.9,5.10788526]
[1727931793143,3.32725,2404.4,2403.9,5.10788526]
[1727931795196,3.0,2404.5,2403.9,5.10788526]
[1727931795432,6.32709,2404.5,2404.0,3.32775]
[1727931795626,6.32709,2404.5,2403.9,8.43572526]
[1727931795937,6.32709,2404.5,2403.9,8.43566526]
[1727931797097,6.32709,2404.5,2404.0,3.32776]
[1727931797539,3.32741,2404.3,2403.9,0.7721]
[1727931798625,6.65487,2404.3,2403.9,0.7721]
[1727931798829,3.32741,2404.3,2403.9,0.7721]
[1727931799823,3.32614743,2404.3,2403.9,0.7721]
[1727931802728,3.32614743,2404.3,2403.8,3.32806]
[1727931803068,3.32786,2404.0,2403.5,4.12698]
[1727931803215,0.3394,2403.9,2403.5,0.7986]
[1727931803729,3.66734,2403.9,2403.5,0.7986]
[1727931804114,0.3394,2403.9,2403.5,4.12705]
[1727931804745,0.3394,2403.9,2403.6,3.32834]
[1727931804926,3.3394,2404.2,2403.8,3.32805]
[1727931805164,3.66673,2404.4,2403.9,4.11848]
[1727931805359,6.3274,2404.3,2403.9,0.7906]
[1727931805584,3.0,2404.3,2403.9,0.7906]
[1727931806090,3.0,2404.3,2403.9,4.11851]